[Event "50th La Roda Open 2024"]
[Site "La Roda"]
[Date "2024.03.31"]
[Round "9.6"]
[White "Sonis, Francesco"]
[Black "Liu, Zexu"]
[Result "1-0"]
[ECO "C60"]
[WhiteElo "2562"]
[BlackElo "2325"]
[Annotator "RC"]
[PlyCount "125"]
[EventDate "2024.03.27"]
[EventType "swiss"]
[EventCountry "ESP"]
[SourceTitle "playchess.com"]
[Source "ChessBase"]
[SourceQuality "1"]
[TimeControl "5400+30"]

1. e4 {[%emt 0:00:02]} e5 {[%emt 0:00:03]} 2. Nf3 {[%emt 0:00:11]} Nc6 {[%emt 0:00:02]} 3. Bb5 {[%emt 0:00:05]} Nge7 {[%emt 0:00:09]} 4. O-O {[%emt 0:03:16]} Ng6 {[%emt 0:00:03]} 5. d4 {[%emt 0:00:08]} exd4 {[%emt 0:00:20]} 6. Nxd4 {[%emt 0:00:18]} Bc5 {[%emt 0:00:11]} 7. Nb3 {[%emt 0:05:33]} Bb6 {[%emt 0:00:04]} 8. Nc3 {[%emt 0:00:04]} O-O {[%emt 0:00:41]} 9. Kh1 {[%emt 0:00:07]} d6 {[%emt 0:05:52]} 10. Nd5 {[%emt 0:01:38]} Nce7 {[%emt 0:00:53]} 11. Nxb6 {[%emt 0:00:06]} axb6 {[%emt 0:00:02]} 12. Nd4 {[%emt 0:10:01]} c6 {[%emt 0:02:37]} 13. Bd3 {[%emt 0:00:22]} Ne5 {[%emt 0:02:41]} 14. Be2 {[%emt 0:00:20]} f5 {[%emt 0:00:45]} 15. exf5 {[%emt 0:07:55]} Nxf5 {[%emt 0:00:27]} 16. c4 {[%emt 0:09:50]} Qh4 {[%emt 0:11:53]} 17. Nxf5 {[%emt 0:05:11]} Bxf5 {[%emt 0:00:08]} 18. b3 {[%emt 0:07:22]} d5 {[%emt 0:19:43]} 19. Bb2 {[%emt 0:05:33]} Rfe8 {[%emt 0:04:19]} 20. cxd5 {[%emt 0:06:05]} Rad8 {[%emt 0:00:15]} 21. d6 {[%emt 0:05:08]} Qb4 {[%emt 0:16:37]} 22. Qd4 {[%emt 0:07:11]} Qxd4 {[%emt 0:00:24]} 23. Bxd4 {[%emt 0:00:04]} b5 {[%emt 0:00:53]} 24. Rfe1 {[%emt 0:01:04]} Nf7 {[%emt 0:04:18]} 25. Bb6 {[%emt 0:00:59]} Rxd6 {[%emt 0:05:35]} 26. Bxb5 {[%emt 0:00:04]} Rxe1+ {[%emt 0:00:34]} 27. Rxe1 {[%emt 0:00:04]} Ne5 {[%emt 0:00:19]} 28. Bf1 {[%emt 0:06:01]} Bd3 {[%emt 0:01:12]} 29. f4 {[%emt 0:08:56]} Nd7 {[%emt 0:00:26]} 30. Bc7 {[%emt 0:00:29]} Rd5 {[%emt 0:00:14]} 31. Kg1 {[%emt 0:00:11]} Bxf1 {[%emt 0:05:10]} 32. Kxf1 {[%emt 0:00:03]} Nc5 {[%emt 0:00:42]} 33. g3 {[%emt 0:03:04]} Kf7 {[%emt 0:03:15]} 34. Bb6 {[%emt 0:02:25]} Nd3 {[%emt 0:00:43]} 35. Re2 {[%emt 0:00:08]} Nb4 {[%emt 0:01:20]} 36. Ke1 {[%emt 0:01:44]} Nd3+ {[%emt 0:00:13]} 37. Kf1 {[%emt 0:00:03]} Nb4 {[%emt 0:00:02]} 38. Kg2 {[%emt 0:00:28]} Rd1 {[%emt 0:00:29]} 39. Ba5 {[%emt 0:00:21]} Nd5 {[%emt 0:00:38]} 40. Re1 {[%emt 0:00:36]} Rd3 {[%emt 0:00:22]} 41. Re2 {[%emt 0:00:29]} g6 {[%emt 0:00:48]} 42. Bd2 {[%emt 0:00:19]} b5 {[%emt 0:00:55]} 43. Be1 {[%emt 0:01:35]} b4 {[%emt 0:01:20]} 44. Kf2 {[%emt 0:01:24]} Rd1 {[%emt 0:00:41]} 45. Rc2 {[%emt 0:00:27]} Ra1 {[%emt 0:00:31]} 46. Bd2 {[%emt 0:00:14]} Ke7 {[%emt 0:00:19]} 47. Be3 {[%emt 0:01:31]} Kd7 {[%emt 0:00:53]} 48. Bd4 {[%emt 0:00:16]} Rh1 {[%emt 0:00:38]} 49. Kf3 {[%emt 0:00:03]} Rd1 {[%emt 0:00:33]} 50. Be5 {[%emt 0:01:52]} Re1 {[%emt 0:01:01]} 51. Re2 {[%emt 0:00:57]} Rd1 {[%emt 0:00:15]} 52. Kg4 {[%emt 0:00:12]} c5 {[%emt 0:03:30]} 53. Kg5 {[%emt 0:00:17]} Kc6 {[%emt 0:01:58]} 54. Kh6 {[%emt 0:00:15]} Nc3 {[%emt 0:01:08]} 55. Rc2 {[%emt 0:00:17]} Rd7 {[%emt 0:01:36]} 56. Bxc3 {[%emt 0:00:29]} bxc3 {[%emt 0:00:01]} 57. Rxc3 {[%emt 0:00:06]} Kb5 {[%emt 0:00:15]} 58. Rc2 {[%emt 0:00:09]} Kb4 {[%emt 0:00:08]} 59. g4 {[%emt 0:00:20]} Rf7 {[%emt 0:00:25]} 60. Rf2 {[%emt 0:00:19]} Kc3 {[%emt 0:00:02]} 61. f5 {[%emt 0:00:04]} gxf5 {[%emt 0:00:07]} 62. gxf5 {[%emt 0:00:14]} Kd3 {[%emt 0:00:06]} 63. f6 {[%emt 0:00:04]} 1-0

[Event "50th La Roda Open 2024"]
[Site "La Roda"]
[Date "2024.03.31"]
[Round "9.7"]
[White "Rottenwohrer Suarez, Juan"]
[Black "Martinez Ramirez, Lennis"]
[Result "0-1"]
[ECO "E12"]
[WhiteElo "2275"]
[BlackElo "2450"]
[Annotator "TA"]
[PlyCount "98"]
[EventDate "2024.03.27"]
[EventType "swiss"]
[EventCountry "ESP"]
[SourceTitle "playchess.com"]
[Source "ChessBase"]
[SourceQuality "1"]
[TimeControl "5400+30"]

{[%evp 9,98,0,18,16,23,15,9,19,23,31,37,39,47,19,17,13,32,5,38,33,141,129,116,54,46,35,43,47,46,0,0,-7,-11,-8,0,0,33,9,5,2,11,0,0,0,0,-99,-87,-72,-89,-128,0,-79,-80,-113,0,0,0,-83,-72,-79,-73,-406,-362,-470,-394,-470,-469,-476,-452,-466,-477,-452,-421,-447,-435,-558,-550,-552,-552,-552,-490,-598,-596,-598,-598,-598,-598,-598,-593,-4821,-4821]} 1. d4 {[%emt 0:00:02]} Nf6 {[%emt 0:00:10]} 2. c4 {[%emt 0:00:04]} e6 {[%emt 0:00:08]} 3. Nf3 {[%emt 0:00:05]} b6 {[%emt 0:02:56]} 4. a3 {[%emt 0:01:49]} Bb7 {[%emt 0:01:27]} 5. Bf4 {[%emt 0:00:01]} d5 {[%emt 0:09:14]} 6. cxd5 {[%emt 0:00:32] E12: Queen's Indian: Unusual White 4th moves, 4 a3, 4 Nc3 Bb7 5 a3 and 4 Nc3 Bb7 .} Nxd5 {[%emt 0:00:52]} 7. Bg3 {[%emt 0:00:02]} Nd7 {[%emt 0:01:00]} 8. Nbd2 {[%emt 0:03:39]} Be7 $146 {[%emt 0:00:53]} ({Predecessor:} 8... N5f6 9. Rc1 Bd6 10. Qc2 O-O 11. e4 Nh5 12. e5 Be7 13. Bd3 g6 14. Be4 Bxe4 15. Qxe4 c5 16. O-O cxd4 17. b4 Nxg3 18. hxg3 a5 19. Nxd4 {½-½ Vaibhav,S (2600)-Peralta,F (2595) Barcelona Sants op-A 23rd 2022 (8)}) 9. Rc1 {[%emt 0:01:16] Hoping for e4.} c5 {[%emt 0:02:14]} 10. dxc5 {[%emt 0:02:20]} bxc5 {[%emt 0:00:31]} 11. Nc4 {[%emt 0:01:39]} O-O {[%emt 0:00:17]} 12. e3 {[%emt 0:01:08]} N7f6 {[%emt 0:01:23]} 13. Bd3 {[%emt 0:04:18]} Nh5 {[%emt 0:02:13]} 14. Be5 {[%emt 0:06:30]} f6 {[%emt 0:03:34]} (14... Nb6 $14) 15. Ng5 $1 $16 {[%emt 0:03:50]} Qe8 {[%emt 0:13:14][%cal Of6e5]} 16. Nxh7 {[%emt 0:10:39]} (16. Bxh7+ Kh8 $14) ({White should play} 16. Nxe6 $16 {Strongly threatening Bd6.} fxe5 17. Nxf8 Kxf8 (17... Bxf8 $2 18. Na5 $18) 18. Na5 (18. Bxh7 Nhf6 $11) (18. Nxe5 Bh4 $19) 18... Nxe3 19. fxe3 Bxg2 20. Rg1) 16... fxe5 $14 {[%emt 0:00:59]} 17. Nxf8 {[%emt 0:02:06]} Kxf8 {[%emt 0:07:30]} 18. Nxe5 {[%emt 0:01:12]} Nhf6 $1 {[%emt 0:00:17]} 19. Qf3 {[%emt 0:06:13]} (19. Ng6+ $14 Kg8 20. Nxe7+ Qxe7 21. O-O) 19... Bd6 $11 {[%emt 0:01:35]} 20. Ng6+ {[%emt 0:03:16]} Kf7 {[%emt 0:04:29]} 21. O-O {[%emt 0:11:19]} Rd8 {[%emt 0:16:15]} 22. Qh3 {[%emt 0:05:37]} Nb6 {[%emt 0:06:44]} 23. Rfd1 {[%emt 0:08:05]} c4 $1 {[%emt 0:04:49]} 24. Bc2 {[%emt 0:26:48] Black should prevent f4.} (24. Bxc4 Nxc4 (24... Kxg6 25. Rxd6 Nxc4 26. Rxc4 $16) 25. Rxc4 Bd5 $17 (25... Kxg6 26. Rxd6 Rc8 27. Qg3+ Kf7 28. Qf4 $16)) 24... Qb5 {[%emt 0:02:30]} 25. Nf4 {[%emt 0:00:00]} Bc8 {[%emt 0:02:30][%cal Oe6e5] ...e5! is the strong threat.} 26. Bg6+ {[%emt 0:00:00]} Ke7 {[%emt 0:00:25][%cal Oe6e5]} 27. Nh5 {[%emt 0:00:00]} (27. Qh4 $11) 27... Rh8 {[%emt 0:04:35][%cal Rh8h5]} 28. Rxd6 {[%emt 0:00:00]} Kxd6 {[%emt 0:00:20]} 29. Qg3+ {[%emt 0:00:00] [#]} e5 {[%emt 0:00:20]} (29... Ke7 $1 $17 30. Nxf6 gxf6) 30. Rd1+ {[%emt 0:00:00]} (30. Nxf6 $11 {keeps the balance.} gxf6 31. Be4) 30... Kc7 $17 {[%emt 0:00:57]} 31. Nxg7 {[%emt 0:00:00]} Rd8 {[%emt 0:05:52]} (31... Qxb2 $17 {[%cal Oh8g8] And now ...Rg8! would win.} 32. Qg5 Rd8 33. Ne8+ (33. Rb1 $2 {gets mated.} Qxb1+ 34. Bxb1 Rd1#) 33... Kb8 (33... Nxe8 $2 34. Qxd8+ Kb8 35. Qxe8 $18) (33... Rxe8 34. Bxe8 Nxe8 35. Qd8+ Kb7 36. Qxe8 $15)) 32. Rxd8 $11 {[%emt 0:00:00]} Kxd8 {[%emt 0:00:33]} 33. Qg5 {[%emt 0:00:00] [#]} (33. Qh4 $1 $11 {remains equal.} Nbd7 34. h3) 33... Nbd7 $1 $17 {[%emt 0:00:09]} 34. h4 {[%emt 0:00:38]} Qxb2 {[%emt 0:00:18]} 35. Ne6+ $2 {[%emt 0:01:45][%mdl 8192]} (35. Nh5 $17 {was worth a try.} Qb6 36. Bc2) 35... Ke7 $19 {[%emt 0:00:12]} 36. Nc7 {[%emt 0:00:00]} Kd6 {[%emt 0:03:53] Inhibits Nd5.} (36... Qxa3 37. Nd5+ Kd8 (37... Ke6 38. Nxf6 Qa5 39. Bf5+ Kd6 40. h5 $18) 38. Nxf6 $16) 37. Ne8+ {[%emt 0:00:28]} Nxe8 {[%emt 0:00:01]} 38. Bxe8 {[%emt 0:00:01]} c3 {[%emt 0:00:17]} (38... Qxa3 39. h5 c3 40. h6 $11) 39. Bg6 {[%emt 0:03:26] Inhibits c2.} c2 {[%emt 0:00:09]} (39... Qxa3 40. Qf5 $19) 40. Bxc2 {[%emt 0:00:10]} Qxc2 {[%emt 0:00:01]} 41. h5 {[%emt 0:00:15]} Bb7 {[%emt 0:01:14]} 42. h6 {[%emt 0:00:24]} Be4 {[%emt 0:01:00]} 43. f3 {[%emt 0:00:01]} Bh7 {[%emt 0:00:53]} 44. e4 {[%emt 0:00:06]} Qc4 {[%emt 0:00:38]} 45. Kh2 {[%emt 0:00:50]} Qf7 {[%emt 0:00:11]} 46. Qd2+ {[%emt 0:00:12]} Ke7 {[%emt 0:00:19]} 47. Qb4+ {[%emt 0:00:35]} Kf6 {[%emt 0:00:13]} 48. Kg1 {[%emt 0:00:51]} Qe6 {[%emt 0:00:30] Threatens to win with ...Qb6+.} 49. Qb7 {[%emt 0:00:47]} Qb6+ {[%emt 0:00:09]} 0-1

[Event "50th La Roda Open 2024"]
[Site "La Roda"]
[Date "2024.03.31"]
[Round "9.8"]
[White "Iglesias Ferreira, Andres"]
[Black "Sanchez Alvarez, Roberto Carlos"]
[Result "1-0"]
[ECO "B96"]
[WhiteElo "2234"]
[BlackElo "2407"]
[Annotator "TA"]
[PlyCount "83"]
[EventDate "2024.03.27"]
[EventType "swiss"]
[EventCountry "ESP"]
[SourceTitle "playchess.com"]
[Source "ChessBase"]
[SourceQuality "1"]
[TimeControl "5400+30"]

{[%evp 19,83,-16,7,-46,-45,-38,-38,-33,-44,-96,-25,-98,-98,-73,0,0,0,0,0,0,0,-57,-68,-60,-40,-58,-42,-276,-16,-269,-270,-287,-280,-282,-282,-575,-255,-233,-9,-8,155,164,164,81,210,202,261,289,256,233,289,281,274,267,246,230,877,870,29992,29993,29993,29994,29994,29995,29995,29996]} 1. e4 {[%emt 0:04:38]} c5 {[%emt 0:03:49]} 2. Nf3 {[%emt 0:00:14]} d6 {[%emt 0:00:06]} 3. d4 {[%emt 0:00:11]} Nf6 {[%emt 0:00:08]} 4. Nc3 {[%emt 0:00:21]} cxd4 {[%emt 0:00:10]} 5. Nxd4 {[%emt 0:00:21]} a6 {[%emt 0:00:09]} 6. Bg5 {[%emt 0:00:09]} e6 {[%emt 0:00:08]} 7. f4 {[%emt 0:00:19]} Nbd7 {[%emt 0:00:17]} 8. Qf3 {[%emt 0:00:56]} Qc7 {[%emt 0:00:18]} 9. O-O-O {[%emt 0:00:25]} b5 {[%emt 0:00:11]} 10. a3 {[%emt 0:01:24]} Rb8 {[%emt 0:05:29]} 11. g4 {[%emt 0:03:08]} (11. f5 $11) 11... b4 $1 $15 {[%emt 0:08:10]} 12. axb4 {[%emt 0:00:41]} Rxb4 {[%emt 0:00:02]} 13. Bh4 {[%emt 0:07:55] Black is slightly better.} h6 {[%emt 0:02:33]} 14. Be1 {[%emt 0:01:01]} (14. Bg2 $15) 14... Qb6 {[%emt 0:00:12]} (14... Bb7 $17 {And now ...Qb6 would win.} 15. Qe3 e5 (15... Nxg4 16. Qg1 $11)) 15. Nb3 {[%emt 0:02:09]} (15. Bf2 $1 $11) 15... Bb7 $1 $17 {[%emt 0:01:18]} 16. Bd3 {[%emt 0:04:24]} Nc5 {[%emt 0:16:12]} (16... d5 $17 {[%cal Rd5e4]} 17. exd5 Nxd5) 17. Nxc5 $11 {[%emt 0:07:51]} dxc5 {[%emt 0:00:03]} 18. g5 {[%emt 0:03:20]} hxg5 {[%emt 0:05:08]} 19. fxg5 {[%emt 0:00:12]} Nd7 {[%emt 0:00:03]} 20. Bg3 {[%emt 0:01:41]} (20. Be2 $11) 20... Be7 $1 $15 {[%emt 0:01:15]} 21. h4 {[%emt 0:03:06]} c4 {[%emt 0:01:48]} 22. Rhf1 $1 {[%emt 0:03:20]} cxd3 {[%emt 0:15:50]} 23. Qxf7+ {[%emt 0:01:07]} Kd8 {[%emt 0:01:17]} 24. Rxd3 {[%emt 0:00:09][%mdl 8192]} (24. Bf2 $1 $11 {and White has nothing to worry.} Qa5 25. Rxd3 Qa1+ (25... Bxe4 $2 26. Rxd7+ Kxd7 27. Rd1+ Kc8 28. Qxe6+ Kb8 29. Qxe7 $18) 26. Kd2 Qxf1 27. Bb6+ Rxb6 28. Qxf1) 24... Rf8 $19 {[%emt 0:01:05]} (24... Rxb2 25. Bf2 Qb4 26. Qxg7 $18) 25. Qxf8+ {[%emt 0:14:02]} Bxf8 {[%emt 0:00:15]} 26. Rxf8+ {[%emt 0:00:03]} Ke7 {[%emt 0:00:09]} 27. Rg8 {[%emt 0:02:54]} (27. Bd6+ Qxd6 28. Rf7+ Kxf7 29. Rxd6) 27... Kf7 {[%emt 0:01:46]} (27... Rxb2 28. Rxg7+ Ke8 29. Rdxd7 Bxe4 30. Rge7+ (30. Nxe4 Rb1+ 31. Kd2 Qb4+ 32. Ke3 Re1+ 33. Bxe1 Qxe1+ 34. Kd4 Qa1+ 35. Kc4 Qa4+ 36. Kd3 Qxd7+ 37. Rxd7 Kxd7) 30... Kf8 31. Rf7+ (31. Nxe4 Rb1+ 32. Kd2 Qb4+ 33. Ke3 Qxe7 $18) 31... Kg8 32. Nxe4 $18) (27... Qg1+ $142 28. Nd1 Ra4 (28... Rxe4 $2 29. Bf2 $18) (28... Kf7 29. Rh8 $11) 29. Rxg7+ Ke8 (29... Kf8 $2 30. b3 $19)) 28. Rh8 {[%emt 0:00:09]} Qg1+ $2 {[%emt 0:20:53]} (28... Bc6 $19 {Hoping for ...Qg1+.} 29. b3 Qa5 30. g6+ Kxg6 31. h5+ Kf7) 29. Nd1 $1 $11 {[%emt 0:01:33] [#] Really sharp!} Bxe4 $2 {[%emt 0:00:40]} 30. Rxd7+ $40 {[%emt 0:00:43][%mdl 128] White has strong attack.} Kg6 {[%emt 0:00:01][%cal Bf7g6,Bg6f5,Bf5f4][%mdl 32]} 31. Bf2 {[%emt 0:09:22] Black is weak on the dark squares} (31. h5+ $1 $18 {is more deadly.} Kf5 32. Bf2) 31... Qh1 {[%emt 0:01:21]} (31... Qh2 $16) 32. h5+ $18 {[%emt 0:07:28]} Kf5 {[%emt 0:04:56]} 33. h6 $1 {[%emt 0:01:49]} (33. Rxg7 Bf3 34. Rf8+ Kg4 35. Rxf3 Qxf3 $19) 33... Rc4 {[%emt 0:03:04]} 34. c3 {[%emt 0:01:19]} (34. Rxg7 {leads to mate.} Rxc2+ (34... Bxc2 35. Rf8+ Ke4 36. Be1 Qxe1 37. Rf4+ Kxf4 38. b4 Qxd1+ 39. Kb2 Qb1+ 40. Ka3 Rc3#) 35. Kb1 Rc4+ (35... Rxf2+ 36. Ka2 Qxd1 37. Rf7+ Ke5 38. Rf5+ Bxf5 39. Ka3 Rf3+ 40. Kb4 Qb3+ 41. Kc5 Qb5#) 36. Ka2 Ra4+ (36... Qxd1 37. Rf8+ Kg4 38. Rf4+ Kxf4 39. Rf7+ Kg4 40. Rf4+ Kxf4 41. Bg3+ Kxg3 42. b3 Qb1+ 43. Ka3 Qa1#) 37. Kb3 Qxd1+ 38. Kc3 Qd3#) 34... Ra4 {[%emt 0:02:15] [#]} 35. Kd2 $1 {[%emt 0:00:24]} Ra1 {[%emt 0:00:20]} 36. Ne3+ {[%emt 0:03:45]} Kf4 {[%emt 0:00:32] [#] ( -> ...Qc1+)} 37. Rf8+ $1 {[%emt 0:02:32]} Kxg5 $2 {[%emt 0:00:25]} (37... Bf5 38. hxg7 Kf3 (38... Qc1+ $2 39. Ke2 $18) 39. Rxf5+ (39. g8=B $2 Qc1#) 39... exf5) 38. hxg7 {[%emt 0:01:14]} Bh7 {[%emt 0:03:34]} 39. g8=Q+ {[%emt 0:00:44] White mates.} Bxg8 {[%emt 0:00:02]} 40. Rxg8+ {[%emt 0:00:20]} Kf6 {[%emt 0:00:01]} 41. Ng4+ {[%emt 0:01:55]} Kf5 {[%emt 0:00:02]} 42. Rf8+ {[%emt 0:02:49] Weighted Error Value: White=0.28 (precise) /Black=0.70.  Loses game:     	White=1     	---        Missed win:     	---       	Black=2      Mistake:       	White=5     	Black=6      Inaccurate:     	---       	Black=1      OK:         	White=7     	Black=4      Best:        	White=4     	Black=5      Strong:       	White=5     	Black=3} 1-0

[Event "50th La Roda Open 2024"]
[Site "La Roda"]
[Date "2024.03.31"]
[Round "9.9"]
[White "Elias Reyes, Jorge Roberto"]
[Black "Hurtado, Felipe"]
[Result "1/2-1/2"]
[ECO "B92"]
[WhiteElo "2473"]
[BlackElo "2087"]
[Annotator "RC"]
[PlyCount "62"]
[EventDate "2024.03.27"]
[EventType "swiss"]
[EventCountry "ESP"]
[SourceTitle "playchess.com"]
[Source "ChessBase"]
[SourceQuality "1"]
[TimeControl "5400+30"]

1. e4 {[%emt 0:01:27]} c5 {[%emt 0:00:11]} 2. Nf3 {[%emt 0:00:08]} d6 {[%emt 0:00:06]} 3. d4 {[%emt 0:00:04]} cxd4 {[%emt 0:00:06]} 4. Nxd4 {[%emt 0:00:01]} Nf6 {[%emt 0:00:12]} 5. Nc3 {[%emt 0:00:05]} a6 {[%emt 0:00:05]} 6. Be2 {[%emt 0:00:06]} e5 {[%emt 0:00:06]} 7. Nb3 {[%emt 0:00:04]} Be7 {[%emt 0:00:07]} 8. Be3 {[%emt 0:00:03]} Be6 {[%emt 0:00:07]} 9. Nd5 {[%emt 0:00:05]} Nbd7 {[%emt 0:00:06]} 10. Qd3 {[%emt 0:00:04]} O-O {[%emt 0:00:08]} 11. O-O {[%emt 0:00:57]} Bxd5 {[%emt 0:00:35]} 12. exd5 {[%emt 0:00:05]} Ne8 {[%emt 0:00:27]} 13. a4 {[%emt 0:03:23]} a5 {[%emt 0:03:47]} 14. Bg4 {[%emt 0:06:27]} Nef6 {[%emt 0:12:35]} 15. Bh3 {[%emt 0:02:23]} b6 {[%emt 0:05:19]} 16. f4 {[%emt 0:02:37]} exf4 {[%emt 0:05:37]} 17. Bxf4 {[%emt 0:01:15]} Nc5 {[%emt 0:00:32]} 18. Qf3 {[%emt 0:05:42]} Nxb3 {[%emt 0:01:01]} 19. Qxb3 {[%emt 0:00:28]} Rb8 {[%emt 0:11:48]} 20. Rae1 {[%emt 0:06:47]} Nh5 {[%emt 0:04:06]} 21. Be3 {[%emt 0:06:06]} Bg5 {[%emt 0:01:28]} 22. Bd4 {[%emt 0:13:27]} Bf6 {[%emt 0:05:37]} 23. Bxf6 {[%emt 0:04:48]} Nxf6 {[%emt 0:00:07]} 24. Qb5 {[%emt 0:04:24]} Re8 {[%emt 0:04:23]} 25. Rd1 {[%emt 0:10:38]} Re3 {[%emt 0:06:18]} 26. Rd4 {[%emt 0:05:02]} Qe7 {[%emt 0:02:37]} 27. Rdf4 {[%emt 0:03:11]} Re1 {[%emt 0:04:35]} 28. Qb3 {[%emt 0:07:00]} Qe5 {[%emt 0:04:53]} 29. Rxe1 {[%emt 0:01:58]} Qxe1+ {[%emt 0:00:23]} 30. Rf1 {[%emt 0:00:09]} Qe5 {[%emt 0:00:55]} 31. Rd1 {[%emt 0:00:29]} h5 {[%emt 0:01:59]} 1/2-1/2

[Event "50th La Roda Open 2024"]
[Site "La Roda"]
[Date "2024.03.31"]
[Round "9.10"]
[White "Yuste Valenzuela, Alejandro"]
[Black "Martinez Reyes, Pedro Ramon"]
[Result "1/2-1/2"]
[ECO "B35"]
[WhiteElo "2106"]
[BlackElo "2332"]
[Annotator "RC"]
[PlyCount "130"]
[EventDate "2024.03.27"]
[EventType "swiss"]
[EventCountry "ESP"]
[SourceTitle "playchess.com"]
[Source "ChessBase"]
[SourceQuality "1"]
[TimeControl "5400+30"]

1. e4 {[%emt 0:00:04]} c5 {[%emt 0:00:09]} 2. Nf3 {[%emt 0:00:09]} Nc6 {[%emt 0:00:05]} 3. d4 {[%emt 0:00:12]} cxd4 {[%emt 0:00:04]} 4. Nxd4 {[%emt 0:00:06]} g6 {[%emt 0:00:03]} 5. Nc3 {[%emt 0:01:01]} Bg7 {[%emt 0:00:04]} 6. Be3 {[%emt 0:00:05]} Nf6 {[%emt 0:00:08]} 7. Bc4 {[%emt 0:00:22]} O-O {[%emt 0:00:06]} 8. Bb3 {[%emt 0:00:06]} a5 {[%emt 0:00:03]} 9. a4 {[%emt 0:00:11]} d6 {[%emt 0:00:54]} 10. Ndb5 {[%emt 0:05:20]} Ng4 {[%emt 0:06:47]} 11. Bg5 {[%emt 0:06:57]} h6 {[%emt 0:00:37]} 12. Bf4 {[%emt 0:00:33]} Kh7 {[%emt 0:02:03]} 13. h3 {[%emt 0:08:46]} Nge5 {[%emt 0:00:14]} 14. Be3 {[%emt 0:00:28]} Be6 {[%emt 0:00:58]} 15. Nd5 {[%emt 0:03:26]} Nd7 {[%emt 0:06:19]} 16. c3 {[%emt 0:01:34]} Nf6 {[%emt 0:07:15]} 17. Bc2 {[%emt 0:10:50]} Ne5 {[%emt 0:07:52]} 18. b3 {[%emt 0:04:19]} Nxd5 {[%emt 0:18:03]} 19. exd5 {[%emt 0:00:08]} Bd7 {[%emt 0:00:23]} 20. Nd4 {[%emt 0:03:47]} Qc8 {[%emt 0:08:13]} 21. c4 {[%emt 0:11:49]} f5 {[%emt 0:00:33]} 22. f4 {[%emt 0:00:35]} Nf7 {[%emt 0:00:10]} 23. Ra2 {[%emt 0:01:50]} e5 {[%emt 0:03:28]} 24. dxe6 {[%emt 0:01:28]} Bxe6 {[%emt 0:00:07]} 25. O-O {[%emt 0:00:54]} Bd7 {[%emt 0:11:07]} 26. Bd3 {[%emt 0:04:34]} Re8 {[%emt 0:00:41]} 27. Bf2 {[%emt 0:00:40]} Bf6 {[%emt 0:03:04]} 28. Re2 {[%emt 0:03:55]} Rxe2 {[%emt 0:00:11]} 29. Bxe2 {[%emt 0:00:46]} Bc6 {[%emt 0:04:11]} 30. Bf3 {[%emt 0:01:15]} Qd7 {[%emt 0:02:18]} 31. Re1 {[%emt 0:02:00]} Re8 {[%emt 0:00:37]} 32. Rxe8 {[%emt 0:01:05]} Qxe8 {[%emt 0:00:01]} 33. Nxc6 {[%emt 0:00:24]} bxc6 {[%emt 0:00:07]} 34. Qe1 {[%emt 0:00:11]} Qb8 {[%emt 0:08:19]} 35. Qe6 {[%emt 0:02:31]} Kg7 {[%emt 0:01:01]} 36. Bxc6 {[%emt 0:01:00]} Qc7 {[%emt 0:06:07]} 37. Qd7 {[%emt 0:08:10]} Qxd7 {[%emt 0:00:08]} 38. Bxd7 {[%emt 0:00:02]} Bc3 {[%emt 0:00:21]} 39. Kf1 {[%emt 0:02:22]} Nd8 {[%emt 0:00:01]} 40. Ke2 {[%emt 0:04:20]} Nb7 {[%emt 0:00:14]} 41. Kd3 {[%emt 0:00:18]} Bb4 {[%emt 0:00:06]} 42. Bc6 {[%emt 0:00:45]} Nc5+ {[%emt 0:00:07]} 43. Kc2 {[%emt 0:00:07]} Ne6 {[%emt 0:00:16]} 44. g3 {[%emt 0:00:41]} Bc5 {[%emt 0:00:06]} 45. Bxc5 {[%emt 0:03:24]} dxc5 {[%emt 0:00:06]} 46. Bd7 {[%emt 0:01:05]} Nd4+ {[%emt 0:00:30]} 47. Kd3 {[%emt 0:02:34]} Nxb3 {[%emt 0:00:10]} 48. g4 {[%emt 0:00:08]} Kf6 {[%emt 0:02:48]} 49. h4 {[%emt 0:00:48]} Nd4 {[%emt 0:04:48]} 50. g5+ {[%emt 0:01:58]} Ke7 {[%emt 0:01:23]} 51. gxh6 {[%emt 0:01:11]} Kf7 {[%emt 0:00:11]} 52. Be8+ {[%emt 0:00:12]} Kf6 {[%emt 0:00:05]} 53. h7 {[%emt 0:00:27]} Kg7 {[%emt 0:00:06]} 54. Bxg6 {[%emt 0:00:20]} Kh8 {[%emt 0:00:30]} 55. h5 {[%emt 0:00:36]} Kg7 {[%emt 0:00:01]} 56. h6+ {[%emt 0:00:47]} Kh8 {[%emt 0:00:04]} 57. Ke3 {[%emt 0:02:12]} Nc2+ {[%emt 0:01:31]} 58. Kd2 {[%emt 0:00:06]} Ne3 {[%emt 0:00:15]} 59. Kc3 {[%emt 0:02:33]} Nxc4 {[%emt 0:00:17]} 60. Bxf5 {[%emt 0:02:03]} Nb6 {[%emt 0:00:08]} 61. Bc2 {[%emt 0:00:00]} Nd5+ {[%emt 0:00:37]} 62. Kc4 {[%emt 0:00:00]} Nxf4 {[%emt 0:01:18]} 63. Kxc5 {[%emt 0:00:00]} Ne2 {[%emt 0:00:03]} 64. Kb5 {[%emt 0:01:04]} Nc3+ {[%emt 0:00:06]} 65. Kxa5 {[%emt 0:00:03]} Nxa4 {[%emt 0:00:04]} 1/2-1/2

[Event "50th La Roda Open 2024"]
[Site "La Roda"]
[Date "2024.03.31"]
[Round "9.11"]
[White "Buendia Pinar, Alvaro"]
[Black "Portero Rubio, Martin"]
[Result "1/2-1/2"]
[ECO "A61"]
[WhiteElo "2331"]
[BlackElo "2067"]
[Annotator "RC"]
[PlyCount "45"]
[EventDate "2024.03.27"]
[EventType "swiss"]
[EventCountry "ESP"]
[SourceTitle "playchess.com"]
[Source "ChessBase"]
[SourceQuality "1"]
[TimeControl "5400+30"]

1. d4 {[%emt 0:00:36]} Nf6 {[%emt 0:00:06]} 2. Nf3 {[%emt 0:00:33]} e6 {[%emt 0:00:04]} 3. c4 {[%emt 0:00:48]} c5 {[%emt 0:00:04]} 4. d5 {[%emt 0:00:13]} d6 {[%emt 0:00:37]} 5. Nc3 {[%emt 0:00:30]} exd5 {[%emt 0:00:09]} 6. cxd5 {[%emt 0:00:32]} g6 {[%emt 0:00:11]} 7. Bf4 {[%emt 0:00:22]} a6 {[%emt 0:05:04]} 8. Nd2 {[%emt 0:00:29]} Nh5 {[%emt 0:07:36]} 9. Qa4+ {[%emt 0:02:03]} Qd7 {[%emt 0:10:50]} 10. Qe4+ {[%emt 0:00:37]} Be7 {[%emt 0:04:24]} 11. Bg5 {[%emt 0:13:17]} f6 {[%emt 0:12:04]} 12. Bh6 {[%emt 0:01:17]} f5 {[%emt 0:02:13]} 13. Qe3 {[%emt 0:00:11]} b5 {[%emt 0:03:43]} 14. g4 {[%emt 0:00:25]} f4 {[%emt 0:05:41]} 15. Bxf4 {[%emt 0:07:40]} Nxf4 {[%emt 0:01:02]} 16. Qxf4 {[%emt 0:00:04]} Qxg4 {[%emt 0:02:33]} 17. Qe3 {[%emt 0:00:05]} Bf5 {[%emt 0:04:51]} 18. Nce4 {[%emt 0:01:48]} O-O {[%emt 0:03:07]} 19. h4 {[%emt 0:01:13]} Bxe4 {[%emt 0:03:42]} 20. Nxe4 {[%emt 0:00:55]} Qf4 {[%emt 0:03:19]} 21. Qxf4 {[%emt 0:05:57]} Rxf4 {[%emt 0:00:01]} 22. Bg2 {[%emt 0:00:07]} Nd7 {[%emt 0:02:28]} 23. h5 {[%emt 0:03:27]} 1/2-1/2